[Event "***Titled Tuesday 3|2 Blitz"]
[Site "Chess.com"]
[Date "2017.02.07"]
[Round "9"]
[White "Sethu0025"]
[Black "Vegan4future"]
[Result "1-0"]
[WhiteElo "2560"]
[BlackElo "2412"]
[TimeControl "180+2"]
[EndTime "15:11:30 PST"]
[Termination "Sethu0025 won by resignation"]

1. e4 {[%clk 0:03:02]} 1... Nc6 {[%clk 0:02:58.7]} 2. d4 {[%clk 0:03:02]} 2...
d5 {[%clk 0:02:58.8]} 3. e5 {[%clk 0:03:03.1]} 3... f6 {[%clk 0:02:59.6]} 4.
exf6 {[%clk 0:03:01.7]} 4... exf6 {[%clk 0:03:01.5]} 5. Nf3 {[%clk 0:03:02.3]}
5... Bd6 {[%clk 0:03:03.4]} 6. Bd3 {[%clk 0:03:02.5]} 6... Nge7 {[%clk
0:03:05.3]} 7. O-O {[%clk 0:03:02.6]} 7... O-O {[%clk 0:03:06.6]} 8. Re1 {[%clk
0:03:03.5]} 8... Bg4 {[%clk 0:03:07.8]} 9. c3 {[%clk 0:03:04]} 9... Qd7 {[%clk
0:03:08.8]} 10. Nbd2 {[%clk 0:03:04.5]} 10... Rae8 {[%clk 0:03:10]} 11. h3
{[%clk 0:03:04.8]} 11... Bf5 {[%clk 0:03:10.6]} 12. Nf1 {[%clk 0:03:04.8]} 12...
Ng6 {[%clk 0:03:09.7]} 13. Be3 {[%clk 0:02:53.4]} 13... a6 {[%clk 0:03:03.5]}
14. Qc2 {[%clk 0:02:49.8]} 14... Bxd3 {[%clk 0:03:04]} 15. Qxd3 {[%clk
0:02:51.7]} 15... Nf4 {[%clk 0:03:05]} 16. Qd2 {[%clk 0:02:49.5]} 16... Nxh3+
{[%clk 0:02:47]} 17. gxh3 {[%clk 0:02:48.4]} 17... Qxh3 {[%clk 0:02:48.9]} 18.
N3h2 {[%clk 0:02:41.4]} 18... Re4 {[%clk 0:02:35]} 19. f3 {[%clk 0:02:41.9]}
19... Rh4 {[%clk 0:02:29.7]} 20. Qg2 {[%clk 0:02:41.8]} 20... Qd7 {[%clk
0:02:06.8]} 21. Kh1 {[%clk 0:02:26.7]} 21... Ne7 {[%clk 0:02:06.7]} 22. Bf2
{[%clk 0:02:25.7]} 22... Rh6 {[%clk 0:02:04.3]} 23. Bg3 {[%clk 0:02:23.2]} 23...
Bxg3 {[%clk 0:02:01.3]} 24. Nxg3 {[%clk 0:02:23.4]} 24... Ng6 {[%clk 0:01:59.7]}
25. Re3 {[%clk 0:02:19.6]} 25... Nf4 {[%clk 0:02:00.5]} 26. Qf2 {[%clk
0:02:17.2]} 26... f5 {[%clk 0:01:55.1]} 27. Rae1 {[%clk 0:02:13.2]} 27... Nh3
{[%clk 0:01:53.7]} 28. Qg2 {[%clk 0:02:08.5]} 28... f4 {[%clk 0:01:55]} 29. Re7
{[%clk 0:02:07.9]} 29... Qb5 {[%clk 0:01:26.2]} 30. Nf5 {[%clk 0:01:55.5]} 30...
Rg6 {[%clk 0:01:10.7]} 31. Rxg7+ {[%clk 0:01:55.6]} 31... Kh8 {[%clk 0:01:10.9]}
32. Rxg6 {[%clk 0:01:56.7]} 32... hxg6 {[%clk 0:01:10.5]} 1-0

[Event "***Titled Tuesday 3|2 Blitz"]
[Site "Chess.com"]
[Date "2017.02.07"]
[Round "9"]
[White "WanderingPuppet"]
[Black "oskariot"]
[Result "0-1"]
[WhiteElo "2317"]
[BlackElo "2495"]
[TimeControl "180+2"]
[EndTime "15:11:40 PST"]
[Termination "oskariot won by checkmate"]

1. e4 {[%clk 0:03:02]} 1... g6 {[%clk 0:03:02]} 2. d4 {[%clk 0:03:02.4]} 2...
Bg7 {[%clk 0:03:03.9]} 3. c4 {[%clk 0:03:02.9]} 3... d6 {[%clk 0:03:05.8]} 4.
Nc3 {[%clk 0:03:04.4]} 4... Nf6 {[%clk 0:03:07]} 5. Be2 {[%clk 0:03:05.1]} 5...
O-O {[%clk 0:03:08.7]} 6. g4 {[%clk 0:03:02.7]} 6... c5 {[%clk 0:03:08.9]} 7. d5
{[%clk 0:03:03.1]} 7... e5 {[%clk 0:02:58.9]} 8. h4 {[%clk 0:02:57.3]} 8... Ne8
{[%clk 0:02:55.8]} 9. h5 {[%clk 0:02:42.6]} 9... Nd7 {[%clk 0:02:48.1]} 10. h6
{[%clk 0:02:41.5]} 10... Bh8 {[%clk 0:02:48.6]} 11. Be3 {[%clk 0:02:28.6]} 11...
f6 {[%clk 0:02:50]} 12. Qd2 {[%clk 0:02:27.9]} 12... a6 {[%clk 0:02:51.5]} 13.
f3 {[%clk 0:02:20.9]} 13... Rb8 {[%clk 0:02:52.8]} 14. Nh3 {[%clk 0:02:18]}
14... Nc7 {[%clk 0:02:52.9]} 15. a4 {[%clk 0:02:15.1]} 15... Rf7 {[%clk
0:02:52.3]} 16. Nf2 {[%clk 0:02:10.2]} 16... Nf8 {[%clk 0:02:53]} 17. Nd3 {[%clk
0:02:01.7]} 17... f5 {[%clk 0:02:54.1]} 18. gxf5 {[%clk 0:01:57.9]} 18... gxf5
{[%clk 0:02:56]} 19. Rg1+ {[%clk 0:01:52.6]} 19... Ng6 {[%clk 0:02:57.2]} 20.
exf5 {[%clk 0:01:51.7]} 20... Bxf5 {[%clk 0:02:57.7]} 21. Ne4 {[%clk 0:01:52.7]}
21... Bxe4 {[%clk 0:02:54.2]} 22. fxe4 {[%clk 0:01:49.8]} 22... Qh4+ {[%clk
0:02:55.3]} 23. Nf2 {[%clk 0:01:23.6]} 23... Rbf8 {[%clk 0:02:54.5]} 24. O-O-O
{[%clk 0:00:53.8]} 24... Rxf2 {[%clk 0:02:49.8]} 25. Qe1 {[%clk 0:00:45.7]}
25... Qh2 {[%clk 0:02:42.8]} 26. Bxf2 {[%clk 0:00:25.2]} 26... Rxf2 {[%clk
0:02:35.8]} 27. Bd3 {[%clk 0:00:12]} 27... Bf6 {[%clk 0:02:28.3]} 28. Kb1 {[%clk
0:00:12.4]} 28... Rxb2+ {[%clk 0:02:28.8]} 29. Kc1 {[%clk 0:00:12.3]} 29... Ra2
{[%clk 0:02:29.4]} 30. Bb1 {[%clk 0:00:11.2]} 30... Qb2# {[%clk 0:02:29.5]} 0-1

[Event "***Titled Tuesday 3|2 Blitz"]
[Site "Chess.com"]
[Date "2017.02.07"]
[Round "9"]
[White "ABDELAZEEZ-M"]
[Black "kikydu96"]
[Result "0-1"]
[WhiteElo "2118"]
[BlackElo "2337"]
[TimeControl "180+2"]
[EndTime "15:12:00 PST"]
[Termination "kikydu96 won by resignation"]

1. d4 {[%clk 0:03:00]} 1... d5 {[%clk 0:03:00.5]} 2. Nf3 {[%clk 0:02:57.7]} 2...
Nf6 {[%clk 0:02:54.7]} 3. Bf4 {[%clk 0:02:55.3]} 3... c5 {[%clk 0:02:55]} 4. c3
{[%clk 0:02:55.6]} 4... Nc6 {[%clk 0:02:56]} 5. e3 {[%clk 0:02:56.1]} 5... Qb6
{[%clk 0:02:56.1]} 6. Qb3 {[%clk 0:02:47.7]} 6... c4 {[%clk 0:02:57]} 7. Qc2
{[%clk 0:02:45]} 7... Bf5 {[%clk 0:02:56.5]} 8. Qc1 {[%clk 0:02:45.6]} 8... e6
{[%clk 0:02:56.2]} 9. Be2 {[%clk 0:02:45.5]} 9... h6 {[%clk 0:02:55.2]} 10. O-O
{[%clk 0:02:43.1]} 10... Be7 {[%clk 0:02:55.3]} 11. Nbd2 {[%clk 0:02:43.3]}
11... Nh5 {[%clk 0:02:55.1]} 12. Bg3 {[%clk 0:02:41.4]} 12... Nxg3 {[%clk
0:02:55.1]} 13. fxg3 {[%clk 0:02:41.6]} 13... O-O {[%clk 0:02:55.6]} 14. e4
{[%clk 0:02:36.3]} 14... dxe4 {[%clk 0:02:54.2]} 15. Nxc4 {[%clk 0:02:36.4]}
15... Qc7 {[%clk 0:02:49.8]} 16. Nfd2 {[%clk 0:02:34]} 16... Bg5 {[%clk
0:02:50.2]} 17. Qe1 {[%clk 0:02:31.2]} 17... b5 {[%clk 0:02:48.4]} 18. Na3
{[%clk 0:02:29.8]} 18... b4 {[%clk 0:02:47.5]} 19. Nb5 {[%clk 0:02:29.3]} 19...
Qb6 {[%clk 0:02:47.6]} 20. Nd6 {[%clk 0:02:17.6]} 20... Nxd4 {[%clk 0:02:48.3]}
21. Nxf5 {[%clk 0:02:12.5]} 21... Nf3+ {[%clk 0:02:42.5]} 22. Kh1 {[%clk
0:02:03.3]} 22... Nxe1 {[%clk 0:02:44.4]} 23. Nc4 {[%clk 0:01:57.7]} 23... Qc5
{[%clk 0:02:43.1]} 24. Nxh6+ {[%clk 0:01:51.4]} 24... Bxh6 {[%clk 0:02:42.6]}
25. Raxe1 {[%clk 0:01:52.3]} 25... bxc3 {[%clk 0:02:43.7]} 26. bxc3 {[%clk
0:01:51.6]} 26... Rac8 {[%clk 0:02:44]} 27. Rb1 {[%clk 0:01:46]} 27... Rfd8
{[%clk 0:02:44]} 28. Rfe1 {[%clk 0:01:45.1]} 28... Bd2 {[%clk 0:02:43.4]} 29.
Rf1 {[%clk 0:01:37]} 29... Bxc3 {[%clk 0:02:43.3]} 30. Rb7 {[%clk 0:01:33.4]}
30... Rc7 {[%clk 0:02:42.7]} 31. Rb3 {[%clk 0:01:31.6]} 31... Bf6 {[%clk
0:02:40.6]} 32. h3 {[%clk 0:01:28]} 32... a5 {[%clk 0:02:39.2]} 33. a4 {[%clk
0:01:27.1]} 33... Qd5 {[%clk 0:02:37.3]} 34. Rb5 {[%clk 0:01:25.8]} 34... Rxc4
{[%clk 0:02:34.4]} 35. Rxd5 {[%clk 0:01:25.6]} 35... exd5 {[%clk 0:02:36.3]} 36.
Bxc4 {[%clk 0:01:25.5]} 36... dxc4 {[%clk 0:02:38.2]} 37. Rf4 {[%clk 0:01:25.6]}
37... c3 {[%clk 0:02:34.8]} 38. Rxe4 {[%clk 0:01:24.5]} 38... c2 {[%clk
0:02:35.7]} 39. Rc4 {[%clk 0:01:25.2]} 39... Rd1+ {[%clk 0:02:36.1]} 40. Kh2
{[%clk 0:01:27.1]} 40... c1=Q {[%clk 0:02:38]} 41. Rxc1 {[%clk 0:01:15.7]} 41...
Rxc1 {[%clk 0:02:39.9]} 0-1

[Event "***Titled Tuesday 3|2 Blitz"]
[Site "Chess.com"]
[Date "2017.02.07"]
[Round "9"]
[White "EltajSafarli"]
[Black "pedromartinez91"]
[Result "1/2-1/2"]
[WhiteElo "2847"]
[BlackElo "2345"]
[TimeControl "180+2"]
[EndTime "15:12:04 PST"]
[Termination "Game drawn by repetition"]

1. e4 {[%clk 0:03:02]} 1... e6 {[%clk 0:02:58.5]} 2. d4 {[%clk 0:03:02.1]} 2...
d5 {[%clk 0:02:59.1]} 3. Nd2 {[%clk 0:03:04]} 3... Nf6 {[%clk 0:02:59.7]} 4. e5
{[%clk 0:03:04.4]} 4... Ne4 {[%clk 0:03:00.3]} 5. Nxe4 {[%clk 0:02:55.3]} 5...
dxe4 {[%clk 0:03:00.8]} 6. Be3 {[%clk 0:02:57.2]} 6... c5 {[%clk 0:03:01]} 7.
dxc5 {[%clk 0:02:48]} 7... Nd7 {[%clk 0:03:01.2]} 8. Ne2 {[%clk 0:02:43.7]} 8...
Bxc5 {[%clk 0:02:37.9]} 9. Bxc5 {[%clk 0:02:43.5]} 9... Nxc5 {[%clk 0:02:38.7]}
10. Qxd8+ {[%clk 0:02:45.4]} 10... Kxd8 {[%clk 0:02:39.5]} 11. Nc3 {[%clk
0:02:46.5]} 11... Ke7 {[%clk 0:02:36.2]} 12. O-O-O {[%clk 0:02:39.2]} 12... Nd7
{[%clk 0:02:32]} 13. Nxe4 {[%clk 0:02:35.7]} 13... Nxe5 {[%clk 0:02:32.8]} 14.
Be2 {[%clk 0:02:31.7]} 14... Bd7 {[%clk 0:02:32.6]} 15. f4 {[%clk 0:02:26.3]}
15... Ng6 {[%clk 0:02:32.9]} 16. g3 {[%clk 0:02:20]} 16... Bc6 {[%clk 0:02:32]}
17. Bf3 {[%clk 0:02:21]} 17... Rhd8 {[%clk 0:02:27.4]} 18. Ng5 {[%clk
0:02:21.6]} 18... Bxf3 {[%clk 0:01:56.3]} 19. Nxf3 {[%clk 0:02:23.5]} 19... Rac8
{[%clk 0:01:52.3]} 20. c3 {[%clk 0:02:10.3]} 20... Nf8 {[%clk 0:01:42.2]} 21.
Kc2 {[%clk 0:02:07.3]} 21... Nd7 {[%clk 0:01:42.8]} 22. Rd2 {[%clk 0:02:04.5]}
22... Nc5 {[%clk 0:01:42.9]} 23. Rhd1 {[%clk 0:02:02.8]} 23... Rxd2+ {[%clk
0:01:39.8]} 24. Rxd2 {[%clk 0:02:04.7]} 24... f6 {[%clk 0:01:40.7]} 25. Re2
{[%clk 0:01:57.2]} 25... a6 {[%clk 0:01:08.3]} 26. Re3 {[%clk 0:01:52.8]} 26...
Kd6 {[%clk 0:01:08.2]} 27. Re2 {[%clk 0:01:50.8]} 27... g6 {[%clk 0:01:07.3]}
28. Re3 {[%clk 0:01:48.6]} 28... Rc7 {[%clk 0:01:02.7]} 29. Re2 {[%clk
0:01:48.1]} 29... Rc8 {[%clk 0:01:03.7]} 30. Re1 {[%clk 0:01:46.1]} 30... Rc7
{[%clk 0:01:03.9]} 31. Rd1+ {[%clk 0:01:40.3]} 31... Ke7 {[%clk 0:01:03.7]} 32.
Re1 {[%clk 0:01:42.2]} 32... Kd6 {[%clk 0:01:04]} 33. Rd1+ {[%clk 0:01:38.7]}
33... Ke7 {[%clk 0:01:04.7]} 34. Re1 {[%clk 0:01:39.8]} 34... Kd6 {[%clk
0:01:05]} 35. Rd1+ {[%clk 0:01:40.5]} 35... Ke7 {[%clk 0:01:05.9]} 36. Re1
{[%clk 0:01:41.8]} 36... Kd6 {[%clk 0:01:06.9]} 1/2-1/2

[Event "***Titled Tuesday 3|2 Blitz"]
[Site "Chess.com"]
[Date "2017.02.07"]
[Round "9"]
[White "FelixBlohberger"]
[Black "MumLookatMeNow"]
[Result "1-0"]
[WhiteElo "2143"]
[BlackElo "2241"]
[TimeControl "180+2"]
[EndTime "15:12:30 PST"]
[Termination "FelixBlohberger won by resignation"]

1. Nf3 {[%clk 0:03:02]} 1... Nf6 {[%clk 0:02:58.9]} 2. c4 {[%clk 0:03:02.7]}
2... g6 {[%clk 0:02:59]} 3. Nc3 {[%clk 0:03:03.8]} 3... Bg7 {[%clk 0:03:00.2]}
4. e4 {[%clk 0:03:04.6]} 4... d6 {[%clk 0:03:00.6]} 5. d4 {[%clk 0:03:05.6]}
5... O-O {[%clk 0:03:01.7]} 6. Be2 {[%clk 0:03:07.1]} 6... e5 {[%clk 0:03:02.4]}
7. O-O {[%clk 0:03:08.4]} 7... Nc6 {[%clk 0:03:03.4]} 8. dxe5 {[%clk 0:03:09.7]}
8... dxe5 {[%clk 0:03:02.6]} 9. Bg5 {[%clk 0:03:11]} 9... Qe8 {[%clk 0:02:38.7]}
10. Nd5 {[%clk 0:02:54.1]} 10... Nxd5 {[%clk 0:02:36.8]} 11. cxd5 {[%clk
0:02:55.3]} 11... Nd4 {[%clk 0:02:37.5]} 12. Rc1 {[%clk 0:02:05.1]} 12... c6
{[%clk 0:02:26.4]} 13. Nxd4 {[%clk 0:01:58.2]} 13... exd4 {[%clk 0:02:28.3]} 14.
dxc6 {[%clk 0:01:59.5]} 14... bxc6 {[%clk 0:02:21.2]} 15. Qc2 {[%clk 0:01:44.3]}
15... h6 {[%clk 0:02:12.4]} 16. Bh4 {[%clk 0:01:14.6]} 16... Bb7 {[%clk
0:02:12.4]} 17. Bd3 {[%clk 0:01:11.6]} 17... Rc8 {[%clk 0:02:11.8]} 18. Bg3
{[%clk 0:01:12.4]} 18... Qe6 {[%clk 0:02:08.2]} 19. Qc4 {[%clk 0:01:11.2]} 19...
Rfd8 {[%clk 0:02:07.3]} 20. Qxe6 {[%clk 0:01:03.3]} 20... fxe6 {[%clk
0:02:09.2]} 21. Rc5 {[%clk 0:01:03.2]} 21... Kf7 {[%clk 0:02:05.5]} 22. Rfc1
{[%clk 0:01:00.6]} 22... Bf8 {[%clk 0:02:06]} 23. Ra5 {[%clk 0:01:01.4]} 23...
c5 {[%clk 0:01:59.9]} 24. Rxa7 {[%clk 0:00:58.5]} 24... Rd7 {[%clk 0:02:00.9]}
25. Bb5 {[%clk 0:00:55.2]} 25... Re7 {[%clk 0:01:40]} 26. Bd6 {[%clk 0:00:43.4]}
26... Bxe4 {[%clk 0:01:39.6]} 27. Bxe7 {[%clk 0:00:42.8]} 27... Bxe7 {[%clk
0:01:41.5]} 28. Re1 {[%clk 0:00:42.7]} 28... Bd5 {[%clk 0:01:41.2]} 29. b3
{[%clk 0:00:42.5]} 29... Kf6 {[%clk 0:01:40.6]} 30. f4 {[%clk 0:00:42.7]} 30...
Bd6 {[%clk 0:01:41.2]} 31. g3 {[%clk 0:00:42.6]} 31... g5 {[%clk 0:01:41.8]} 32.
fxg5+ {[%clk 0:00:40.8]} 32... hxg5 {[%clk 0:01:42.8]} 33. Rf1+ {[%clk
0:00:41.9]} 33... Kg6 {[%clk 0:01:43.5]} 34. Bd3+ {[%clk 0:00:43.5]} 34... Kh5
{[%clk 0:01:41.5]} 35. Rh7+ {[%clk 0:00:42.6]} 35... Kg4 {[%clk 0:01:42.5]} 36.
Be2+ {[%clk 0:00:43.4]} 1-0

[Event "***Titled Tuesday 3|2 Blitz"]
[Site "Chess.com"]
[Date "2017.02.07"]
[Round "9"]
[White "ftorodent"]
[Black "Kacparov"]
[Result "0-1"]
[WhiteElo "2534"]
[BlackElo "2592"]
[TimeControl "180+2"]
[EndTime "15:12:32 PST"]
[Termination "Kacparov won by resignation"]

1. d4 {[%clk 0:03:02]} 1... d6 {[%clk 0:02:54]} 2. Nf3 {[%clk 0:03:01.8]} 2...
g6 {[%clk 0:02:53.9]} 3. c4 {[%clk 0:03:02.3]} 3... Bg7 {[%clk 0:02:54.8]} 4.
Bg5 {[%clk 0:03:00]} 4... Nd7 {[%clk 0:02:50.7]} 5. Nc3 {[%clk 0:02:59.9]} 5...
h6 {[%clk 0:02:50.9]} 6. Bh4 {[%clk 0:03:00.8]} 6... c5 {[%clk 0:02:51.8]} 7. e3
{[%clk 0:03:00.3]} 7... Ngf6 {[%clk 0:02:51.2]} 8. Be2 {[%clk 0:02:57.5]} 8...
O-O {[%clk 0:02:52.3]} 9. O-O {[%clk 0:02:58.5]} 9... b6 {[%clk 0:02:49.9]} 10.
d5 {[%clk 0:02:57.9]} 10... Bb7 {[%clk 0:02:50.6]} 11. e4 {[%clk 0:02:58.6]}
11... a6 {[%clk 0:02:50.8]} 12. a4 {[%clk 0:02:58.9]} 12... Ng4 {[%clk
0:02:49.4]} 13. h3 {[%clk 0:02:54.1]} 13... Nge5 {[%clk 0:02:49.5]} 14. Nd2
{[%clk 0:02:55.1]} 14... g5 {[%clk 0:02:50.1]} 15. Bg3 {[%clk 0:02:55.9]} 15...
Ng6 {[%clk 0:02:51.3]} 16. Bg4 {[%clk 0:02:41.1]} 16... Nde5 {[%clk 0:02:51.2]}
17. Bf5 {[%clk 0:02:41.7]} 17... Bc8 {[%clk 0:02:51.6]} 18. Ne2 {[%clk
0:02:40.3]} 18... e6 {[%clk 0:02:52]} 19. Bxg6 {[%clk 0:02:33.5]} 19... Nxg6
{[%clk 0:02:48.5]} 20. f4 {[%clk 0:02:31]} 20... gxf4 {[%clk 0:02:47]} 21. Nxf4
{[%clk 0:02:32]} 21... Bxb2 {[%clk 0:02:47.7]} 22. Rb1 {[%clk 0:02:24.3]} 22...
Bd4+ {[%clk 0:02:48.6]} 23. Kh1 {[%clk 0:02:25]} 23... e5 {[%clk 0:02:13]} 24.
Nxg6 {[%clk 0:01:20.7]} 24... fxg6 {[%clk 0:02:14.9]} 25. Rxf8+ {[%clk
0:01:21.5]} 25... Kxf8 {[%clk 0:02:08.6]} 26. Qf3+ {[%clk 0:01:20.9]} 26... Kg7
{[%clk 0:02:08.5]} 27. Rf1 {[%clk 0:01:22.4]} 27... Qe7 {[%clk 0:02:07.6]} 28.
Qb3 {[%clk 0:01:11.5]} 28... Rb8 {[%clk 0:02:04]} 29. Nf3 {[%clk 0:01:11]} 29...
Bd7 {[%clk 0:02:01.5]} 30. Nh2 {[%clk 0:00:59.5]} 30... b5 {[%clk 0:01:56.9]}
31. axb5 {[%clk 0:00:55.7]} 31... axb5 {[%clk 0:01:58.8]} 32. Ng4 {[%clk
0:00:54.8]} 32... b4 {[%clk 0:01:52.8]} 33. Nh2 {[%clk 0:00:29.8]} 33... Ra8
{[%clk 0:01:52]} 34. Rb1 {[%clk 0:00:21.2]} 34... Ra3 {[%clk 0:01:50.9]} 35. Qd1
{[%clk 0:00:22.4]} 35... Rxg3 {[%clk 0:01:51.2]} 0-1

[Event "***Titled Tuesday 3|2 Blitz"]
[Site "Chess.com"]
[Date "2017.02.07"]
[Round "9"]
[White "PelinGorki"]
[Black "RitvarsReimanis"]
[Result "1-0"]
[WhiteElo "2399"]
[BlackElo "2384"]
[TimeControl "180+2"]
[EndTime "15:12:33 PST"]
[Termination "PelinGorki won on time"]

1. e4 {[%clk 0:03:02]} 1... e6 {[%clk 0:03:00.3]} 2. d4 {[%clk 0:03:03.1]} 2...
d5 {[%clk 0:02:59.7]} 3. Nc3 {[%clk 0:03:04.7]} 3... c6 {[%clk 0:02:59.5]} 4. g3
{[%clk 0:02:59.2]} 4... f5 {[%clk 0:02:59.4]} 5. exd5 {[%clk 0:02:58.9]} 5...
exd5 {[%clk 0:03:00.3]} 6. Bg2 {[%clk 0:03:00.4]} 6... Nf6 {[%clk 0:02:59.9]} 7.
Nge2 {[%clk 0:03:01.9]} 7... Bd6 {[%clk 0:03:00.3]} 8. O-O {[%clk 0:03:03.5]}
8... O-O {[%clk 0:02:58.8]} 9. Bf4 {[%clk 0:03:04.9]} 9... Ne4 {[%clk 0:02:50]}
10. f3 {[%clk 0:03:03.8]} 10... Nxc3 {[%clk 0:02:48.6]} 11. bxc3 {[%clk
0:03:05.7]} 11... b6 {[%clk 0:02:45]} 12. Re1 {[%clk 0:03:01.3]} 12... Ba6
{[%clk 0:02:44.2]} 13. Bxd6 {[%clk 0:03:02.3]} 13... Qxd6 {[%clk 0:02:46.1]} 14.
Nf4 {[%clk 0:03:03.5]} 14... Bc8 {[%clk 0:02:32.8]} 15. Qd2 {[%clk 0:03:01.4]}
15... Na6 {[%clk 0:02:27.6]} 16. Re5 {[%clk 0:03:01.5]} 16... Bd7 {[%clk
0:02:24.8]} 17. Rae1 {[%clk 0:03:02.6]} 17... Nc7 {[%clk 0:02:17.4]} 18. Nd3
{[%clk 0:02:59.9]} 18... Rae8 {[%clk 0:02:09.2]} 19. Qg5 {[%clk 0:02:59.2]}
19... Rxe5 {[%clk 0:01:59.3]} 20. Nxe5 {[%clk 0:02:58.3]} 20... Ne6 {[%clk
0:01:43.4]} 21. Qd2 {[%clk 0:02:51.5]} 21... Bc8 {[%clk 0:01:24.2]} 22. f4
{[%clk 0:02:50.1]} 22... Nc7 {[%clk 0:01:13.5]} 23. c4 {[%clk 0:02:47]} 23...
Be6 {[%clk 0:01:08.5]} 24. c3 {[%clk 0:02:44]} 24... c5 {[%clk 0:00:52.4]} 25.
h4 {[%clk 0:02:31.6]} 25... dxc4 {[%clk 0:00:43.8]} 26. d5 {[%clk 0:02:28.3]}
26... Bxd5 {[%clk 0:00:35.1]} 27. Rd1 {[%clk 0:02:27.6]} 27... Rd8 {[%clk
0:00:32.4]} 28. Nxc4 {[%clk 0:02:27]} 28... Qg6 {[%clk 0:00:30.8]} 29. Kh2
{[%clk 0:02:07.9]} 29... Qe6 {[%clk 0:00:19.5]} 30. Ne3 {[%clk 0:02:05.3]} 30...
g5 {[%clk 0:00:09.5]} 31. Nxd5 {[%clk 0:02:00.4]} 31... gxf4 {[%clk 0:00:07.6]}
32. Nf6+ {[%clk 0:01:59.9]} 32... Qxf6 {[%clk 0:00:07.2]} 33. Qxd8+ {[%clk
0:02:00.8]} 1-0

[Event "***Titled Tuesday 3|2 Blitz"]
[Site "Chess.com"]
[Date "2017.02.07"]
[Round "9"]
[White "Shivagami"]
[Black "oggy1984"]
[Result "0-1"]
[WhiteElo "1973"]
[BlackElo "2287"]
[TimeControl "180+2"]
[EndTime "15:13:06 PST"]
[Termination "oggy1984 won by resignation"]

1. d4 {[%clk 0:03:02]} 1... Nf6 {[%clk 0:02:58]} 2. Bf4 {[%clk 0:03:01.7]} 2...
e6 {[%clk 0:02:56.7]} 3. e3 {[%clk 0:03:02.5]} 3... d5 {[%clk 0:02:57]} 4. Nd2
{[%clk 0:03:03.2]} 4... c5 {[%clk 0:02:56.7]} 5. c3 {[%clk 0:03:02.7]} 5... Nc6
{[%clk 0:02:57.2]} 6. Ngf3 {[%clk 0:03:02.2]} 6... Bd6 {[%clk 0:02:57.3]} 7. Bg3
{[%clk 0:03:01.7]} 7... O-O {[%clk 0:02:56.5]} 8. Bd3 {[%clk 0:03:01.2]} 8... b6
{[%clk 0:02:53.8]} 9. Ne5 {[%clk 0:02:54.1]} 9... Bb7 {[%clk 0:02:47.9]} 10. O-O
{[%clk 0:02:53.2]} 10... Qc7 {[%clk 0:02:43]} 11. f4 {[%clk 0:02:51.7]} 11...
Ne7 {[%clk 0:02:29.3]} 12. Qb1 {[%clk 0:02:41.3]} 12... Ng6 {[%clk 0:02:23]} 13.
e4 {[%clk 0:02:16]} 13... dxe4 {[%clk 0:02:17.7]} 14. Nxe4 {[%clk 0:02:15.6]}
14... Nxe4 {[%clk 0:02:17.2]} 15. Bxe4 {[%clk 0:02:15.4]} 15... Bxe4 {[%clk
0:02:17.4]} 16. Qxe4 {[%clk 0:02:15.9]} 16... Rac8 {[%clk 0:02:10.7]} 17. f5
{[%clk 0:01:55.9]} 17... exf5 {[%clk 0:02:07.7]} 18. Rxf5 {[%clk 0:01:47.7]}
18... cxd4 {[%clk 0:01:49.3]} 19. cxd4 {[%clk 0:01:47.2]} 19... Rfe8 {[%clk
0:01:26.2]} 20. Raf1 {[%clk 0:01:13.8]} 20... Bxe5 {[%clk 0:01:18.1]} 21. dxe5
{[%clk 0:01:08.6]} 21... Qc5+ {[%clk 0:00:59.7]} 22. Kh1 {[%clk 0:01:08.8]}
22... Qc2 {[%clk 0:00:41.3]} 23. Qd5 {[%clk 0:00:50.4]} 23... Qxf5 {[%clk
0:00:35.8]} 0-1

[Event "***Titled Tuesday 3|2 Blitz"]
[Site "Chess.com"]
[Date "2017.02.07"]
[Round "9"]
[White "GMHess"]
[Black "Sven_Tica"]
[Result "0-1"]
[WhiteElo "2575"]
[BlackElo "2431"]
[TimeControl "180+2"]
[EndTime "15:13:08 PST"]
[Termination "Sven_Tica won by resignation"]

1. b3 {[%clk 0:03:02]} 1... c5 {[%clk 0:03:00]} 2. Bb2 {[%clk 0:02:55.1]} 2...
Nc6 {[%clk 0:03:01]} 3. e3 {[%clk 0:02:56]} 3... d6 {[%clk 0:03:00.3]} 4. Bb5
{[%clk 0:02:54.3]} 4... Bd7 {[%clk 0:02:54.2]} 5. Nf3 {[%clk 0:02:55.2]} 5... e6
{[%clk 0:02:48.1]} 6. O-O {[%clk 0:02:54.1]} 6... Nf6 {[%clk 0:02:49]} 7. d4
{[%clk 0:02:55.3]} 7... cxd4 {[%clk 0:02:48.2]} 8. exd4 {[%clk 0:02:55.6]} 8...
d5 {[%clk 0:02:48.1]} 9. c4 {[%clk 0:02:56.4]} 9... Be7 {[%clk 0:02:39.8]} 10.
Ne5 {[%clk 0:02:56.6]} 10... Nxe5 {[%clk 0:02:21.6]} 11. dxe5 {[%clk 0:02:57.5]}
11... Bxb5 {[%clk 0:02:22.7]} 12. cxb5 {[%clk 0:02:38.7]} 12... Nd7 {[%clk
0:02:22.8]} 13. Bd4 {[%clk 0:02:24.4]} 13... O-O {[%clk 0:02:17.6]} 14. Nc3
{[%clk 0:02:25.5]} 14... Qa5 {[%clk 0:02:16]} 15. Qg4 {[%clk 0:02:07.8]} 15...
Rac8 {[%clk 0:02:06.7]} 16. Nxd5 {[%clk 0:02:04.8]} 16... Bc5 {[%clk 0:01:54]}
17. Bxc5 {[%clk 0:01:45]} 17... Rxc5 {[%clk 0:01:52.6]} 18. b4 {[%clk
0:01:35.7]} 18... Qa4 {[%clk 0:01:46.5]} 19. Nf6+ {[%clk 0:01:20.9]} 19... Nxf6
{[%clk 0:01:47.3]} 20. exf6 {[%clk 0:01:22.8]} 20... g6 {[%clk 0:01:48.8]} 21.
Rfd1 {[%clk 0:00:49.1]} 21... Rxb5 {[%clk 0:01:46.7]} 22. Rd4 {[%clk 0:00:43.6]}
22... Rf5 {[%clk 0:01:30.2]} 23. Qh4 {[%clk 0:00:30]} 23... Rc8 {[%clk
0:01:17.3]} 24. g4 {[%clk 0:00:28.8]} 24... Rf3 {[%clk 0:01:10.4]} 25. g5 {[%clk
0:00:19.3]} 25... h5 {[%clk 0:01:10.2]} 26. gxh6 {[%clk 0:00:18.2]} 26... Kh7
{[%clk 0:01:10.4]} 27. Rad1 {[%clk 0:00:19.1]} 27... Rc7 {[%clk 0:01:03.8]} 28.
Rd8 {[%clk 0:00:12.5]} 28... Rf5 {[%clk 0:01:01.1]} 29. Rf8 {[%clk 0:00:10.1]}
29... Qxd1+ {[%clk 0:01:00.9]} 0-1